[Event "*** Titled Tuesday Blitz"]
[Site "Chess.com"]
[Date "2018.08.07"]
[Round "5"]
[White "BilodeauA"]
[Black "GM_dmitrij"]
[Result "1/2-1/2"]
[WhiteElo "2724"]
[BlackElo "2704"]
[TimeControl "180+2"]
[EndTime "14:08:34 PDT"]
[Termination "Game drawn - insufficient material"]

1. e4 {[%clk 0:03:01.9]} 1... e5 {[%clk 0:02:59.4]} 2. Nf3 {[%clk 0:03:02.5]}
2... Nc6 {[%clk 0:03:00.4]} 3. Bb5 {[%clk 0:03:04]} 3... a6 {[%clk 0:03:01.2]}
4. Ba4 {[%clk 0:03:05]} 4... Nf6 {[%clk 0:03:02.6]} 5. O-O {[%clk 0:03:05.8]}
5... Bc5 {[%clk 0:03:04.1]} 6. Bxc6 {[%clk 0:02:53.1]} 6... dxc6 {[%clk
0:03:04.5]} 7. d3 {[%clk 0:02:53.8]} 7... Bg4 {[%clk 0:02:55.6]} 8. Be3 {[%clk
0:02:51.8]} 8... Nd7 {[%clk 0:02:51.6]} 9. Nbd2 {[%clk 0:02:50.8]} 9... Qe7
{[%clk 0:02:44.5]} 10. a3 {[%clk 0:02:39]} 10... O-O {[%clk 0:02:42.8]} 11. Qe1
{[%clk 0:02:37.1]} 11... Rad8 {[%clk 0:02:31.1]} 12. b4 {[%clk 0:02:32.7]} 12...
Bd6 {[%clk 0:02:19]} 13. h3 {[%clk 0:02:29.8]} 13... Be6 {[%clk 0:02:05.6]} 14.
Ng5 {[%clk 0:02:24.4]} 14... c5 {[%clk 0:02:06.4]} 15. Nxe6 {[%clk 0:02:24.4]}
15... Qxe6 {[%clk 0:02:07.5]} 16. Nc4 {[%clk 0:02:25.4]} 16... Rfe8 {[%clk
0:01:47.4]} 17. Rb1 {[%clk 0:02:20.8]} 17... b5 {[%clk 0:01:45.5]} 18. Na5
{[%clk 0:02:21.2]} 18... Rc8 {[%clk 0:01:18.1]} 19. c4 {[%clk 0:02:06.1]} 19...
cxb4 {[%clk 0:01:06.8]} 20. axb4 {[%clk 0:02:06.5]} 20... c5 {[%clk 0:01:06.8]}
21. cxb5 {[%clk 0:02:00.9]} 21... axb5 {[%clk 0:01:06.4]} 22. bxc5 {[%clk
0:02:01.6]} 22... Nxc5 {[%clk 0:01:06.4]} 23. Bxc5 {[%clk 0:01:55.8]} 23... Rxc5
{[%clk 0:01:04.5]} 24. Nb7 {[%clk 0:01:55.3]} 24... Rc7 {[%clk 0:01:02]} 25.
Rxb5 {[%clk 0:01:50.5]} 25... Bf8 {[%clk 0:01:01]} 26. Na5 {[%clk 0:01:48.6]}
26... Rd8 {[%clk 0:01:00.5]} 27. Qe2 {[%clk 0:01:32.5]} 27... Rc3 {[%clk
0:00:59.7]} 28. Nc4 {[%clk 0:01:32.4]} 28... Rcxd3 {[%clk 0:00:54.9]} 29. Nxe5
{[%clk 0:01:31.7]} 29... Rd2 {[%clk 0:00:55.4]} 30. Qf3 {[%clk 0:01:26.5]} 30...
f6 {[%clk 0:00:47.9]} 31. Ng4 {[%clk 0:01:22.8]} 31... Qc4 {[%clk 0:00:34.3]}
32. Qb3 {[%clk 0:01:17.9]} 32... Qxb3 {[%clk 0:00:34.4]} 33. Rxb3 {[%clk
0:01:19.4]} 33... Re2 {[%clk 0:00:35.7]} 34. Re3 {[%clk 0:01:19]} 34... Rdd2
{[%clk 0:00:34.6]} 35. Rxe2 {[%clk 0:01:17.6]} 35... Rxe2 {[%clk 0:00:36.5]} 36.
f3 {[%clk 0:01:18.2]} 36... h5 {[%clk 0:00:33.5]} 37. Nh2 {[%clk 0:01:10.5]}
37... Bc5+ {[%clk 0:00:34.8]} 38. Kh1 {[%clk 0:01:11.5]} 38... Bd6 {[%clk
0:00:31.6]} 39. Rd1 {[%clk 0:01:10.9]} 39... Bxh2 {[%clk 0:00:32.4]} 40. Kxh2
{[%clk 0:01:12.8]} 40... h4 {[%clk 0:00:34]} 41. Rd5 {[%clk 0:01:13.2]} 41...
Kf7 {[%clk 0:00:33.3]} 42. Kg1 {[%clk 0:01:12.1]} 42... g5 {[%clk 0:00:33]} 43.
Rd6 {[%clk 0:01:11.3]} 43... Ke7 {[%clk 0:00:33.5]} 44. Ra6 {[%clk 0:01:11.8]}
44... Kf7 {[%clk 0:00:32.4]} 45. Ra7+ {[%clk 0:01:12]} 45... Ke6 {[%clk
0:00:32.7]} 46. Ra6+ {[%clk 0:01:11.9]} 46... Ke5 {[%clk 0:00:33.3]} 47. Kf1
{[%clk 0:01:11.7]} 47... Rb2 {[%clk 0:00:33.4]} 48. Rc6 {[%clk 0:01:11.5]} 48...
Ra2 {[%clk 0:00:33.7]} 49. Rc5+ {[%clk 0:01:06.3]} 49... Ke6 {[%clk 0:00:33.1]}
50. Rd5 {[%clk 0:01:06.9]} 50... Rb2 {[%clk 0:00:30.7]} 51. Rf5 {[%clk
0:01:05.9]} 51... Rb1+ {[%clk 0:00:29.2]} 52. Kf2 {[%clk 0:01:06.6]} 52... Rb2+
{[%clk 0:00:31.1]} 53. Kg1 {[%clk 0:01:05.9]} 53... Rb1+ {[%clk 0:00:32.4]} 54.
Kh2 {[%clk 0:01:07.4]} 54... Re1 {[%clk 0:00:33.4]} 55. Rb5 {[%clk 0:01:05.1]}
55... Re2 {[%clk 0:00:31.3]} 56. Kg1 {[%clk 0:01:05]} 56... Re1+ {[%clk
0:00:31.3]} 57. Kf2 {[%clk 0:01:06]} 57... Ra1 {[%clk 0:00:32.4]} 58. Rb2 {[%clk
0:01:07.1]} 58... Ra3 {[%clk 0:00:33]} 59. Rd2 {[%clk 0:01:08]} 59... Ke5 {[%clk
0:00:32.7]} 60. g3 {[%clk 0:01:05.8]} 60... hxg3+ {[%clk 0:00:31.8]} 61. Kxg3
{[%clk 0:01:07.7]} 61... Ra1 {[%clk 0:00:26.8]} 62. Rd8 {[%clk 0:01:08.6]} 62...
Rg1+ {[%clk 0:00:26.2]} 63. Kf2 {[%clk 0:01:09.8]} 63... Rh1 {[%clk 0:00:24.8]}
64. Kg2 {[%clk 0:01:08.6]} 64... Ra1 {[%clk 0:00:26.1]} 65. Rd5+ {[%clk
0:01:09.7]} 65... Ke6 {[%clk 0:00:26.9]} 66. Rb5 {[%clk 0:01:10.2]} 66... Rc1
{[%clk 0:00:27.4]} 67. Kf2 {[%clk 0:01:10.4]} 67... Rh1 {[%clk 0:00:27.4]} 68.
Kg2 {[%clk 0:01:11.8]} 68... Rc1 {[%clk 0:00:28.8]} 69. Rb8 {[%clk 0:01:02.2]}
69... Ke5 {[%clk 0:00:29.5]} 70. Rb5+ {[%clk 0:00:57.7]} 70... Ke6 {[%clk
0:00:30.4]} 71. Ra5 {[%clk 0:00:59.2]} 71... Rb1 {[%clk 0:00:31]} 72. Rf5 {[%clk
0:00:46.3]} 72... Re1 {[%clk 0:00:29.8]} 73. Kh2 {[%clk 0:00:42.9]} 73... Ra1
{[%clk 0:00:26.2]} 74. Rb5 {[%clk 0:00:38.3]} 74... Rf1 {[%clk 0:00:25]} 75. Kg3
{[%clk 0:00:37]} 75... Rg1+ {[%clk 0:00:26]} 76. Kf2 {[%clk 0:00:38.3]} 76...
Rc1 {[%clk 0:00:27.9]} 77. Rb2 {[%clk 0:00:31]} 77... Ke5 {[%clk 0:00:26.7]} 78.
Kg3 {[%clk 0:00:32.3]} 78... Rg1+ {[%clk 0:00:22.6]} 79. Rg2 {[%clk 0:00:33.5]}
79... Rxg2+ {[%clk 0:00:19.1]} 80. Kxg2 {[%clk 0:00:34.5]} 80... Kf4 {[%clk
0:00:19]} 81. Kf2 {[%clk 0:00:34.6]} 81... f5 {[%clk 0:00:20.4]} 82. exf5 {[%clk
0:00:35.1]} 82... Kxf5 {[%clk 0:00:22.3]} 83. Ke2 {[%clk 0:00:25.1]} 83... Kf4
{[%clk 0:00:23]} 84. Kf2 {[%clk 0:00:26.7]} 84... Kf5 {[%clk 0:00:24.2]} 85. Kg3
{[%clk 0:00:27.4]} 85... Kf6 {[%clk 0:00:25.3]} 86. Kg2 {[%clk 0:00:18.6]} 86...
Kf5 {[%clk 0:00:24.8]} 87. Kf1 {[%clk 0:00:18.4]} 87... Kf4 {[%clk 0:00:22.4]}
88. Kf2 {[%clk 0:00:19.9]} 88... Kf5 {[%clk 0:00:23.8]} 89. Ke3 {[%clk
0:00:19.3]} 89... Ke5 {[%clk 0:00:24.4]} 90. Ke2 {[%clk 0:00:19.2]} 90... Kf4
{[%clk 0:00:26.3]} 91. Kf2 {[%clk 0:00:20.6]} 91... Kf5 {[%clk 0:00:27.6]} 92.
Kg3 {[%clk 0:00:22.5]} 92... Kf6 {[%clk 0:00:28.8]} 93. h4 {[%clk 0:00:18]}
93... gxh4+ {[%clk 0:00:29.3]} 94. Kxh4 {[%clk 0:00:19.9]} 94... Kf5 {[%clk
0:00:30.8]} 95. f4 {[%clk 0:00:21.8]} 95... Kxf4 {[%clk 0:00:31.8]} 1/2-1/2

[Event "*** Titled Tuesday Blitz"]
[Site "Chess.com"]
[Date "2018.08.07"]
[Round "6"]
[White "indfraeng"]
[Black "Quiet_Desperation"]
[Result "0-1"]
[WhiteElo "1904"]
[BlackElo "1907"]
[TimeControl "180+2"]
[EndTime "14:10:52 PDT"]
[Termination "Quiet_Desperation won by resignation"]

1. d4 {[%clk 0:03:01.9]} 1... Nf6 {[%clk 0:03:00.8]} 2. c4 {[%clk 0:03:01.4]}
2... e6 {[%clk 0:03:01.8]} 3. Nf3 {[%clk 0:02:59.8]} 3... Bb4+ {[%clk
0:03:01.8]} 4. Bd2 {[%clk 0:02:58.5]} 4... Qe7 {[%clk 0:03:02.8]} 5. g3 {[%clk
0:02:57.9]} 5... Nc6 {[%clk 0:03:01.1]} 6. Bg2 {[%clk 0:02:58.1]} 6... Bxd2+
{[%clk 0:02:59.9]} 7. Qxd2 {[%clk 0:02:58.5]} 7... Ne4 {[%clk 0:03:00.5]} 8. Qd3
{[%clk 0:02:57.2]} 8... Qb4+ {[%clk 0:02:57.9]} 9. Nc3 {[%clk 0:02:54.7]} 9...
Qxb2 {[%clk 0:02:56.6]} 10. O-O {[%clk 0:02:45.5]} 10... Nxc3 {[%clk 0:02:53.8]}
11. Rfc1 {[%clk 0:02:45.7]} 11... Nxe2+ {[%clk 0:02:53.9]} 12. Kh1 {[%clk
0:02:40.1]} 12... Nxc1 {[%clk 0:02:54.9]} 13. Qb1 {[%clk 0:02:35.7]} 13... Qxb1
{[%clk 0:02:54.7]} 14. Rxb1 {[%clk 0:02:37.6]} 14... Nd3 {[%clk 0:02:55.4]} 15.
Rd1 {[%clk 0:02:38.5]} 15... Nxf2+ {[%clk 0:02:56.3]} 0-1

[Event "*** Titled Tuesday Blitz"]
[Site "Chess.com"]
[Date "2018.08.07"]
[Round "6"]
[White "Last7Samurai"]
[Black "guillembaches"]
[Result "1-0"]
[WhiteElo "2606"]
[BlackElo "2238"]
[TimeControl "180+2"]
[EndTime "14:12:59 PDT"]
[Termination "Last7Samurai won by resignation"]

1. e4 {[%clk 0:03:01.8]} 1... c5 {[%clk 0:03:00.4]} 2. c3 {[%clk 0:03:00.1]}
2... d5 {[%clk 0:02:58.8]} 3. exd5 {[%clk 0:03:01.3]} 3... Qxd5 {[%clk
0:03:00.7]} 4. d4 {[%clk 0:03:00.2]} 4... Nc6 {[%clk 0:03:01.2]} 5. Nf3 {[%clk
0:03:01]} 5... Bg4 {[%clk 0:03:00.4]} 6. Be2 {[%clk 0:03:01.7]} 6... cxd4 {[%clk
0:02:56.6]} 7. cxd4 {[%clk 0:03:02.1]} 7... e6 {[%clk 0:02:57.7]} 8. h3 {[%clk
0:02:58.4]} 8... Bh5 {[%clk 0:02:58]} 9. Nc3 {[%clk 0:02:57.7]} 9... Bb4 {[%clk
0:02:58.2]} 10. O-O {[%clk 0:02:56.4]} 10... Qa5 {[%clk 0:02:59]} 11. d5 {[%clk
0:02:54.4]} 11... O-O-O {[%clk 0:02:44.3]} 12. Ng5 {[%clk 0:02:46.9]} 12... Bg6
{[%clk 0:02:27.8]} 13. dxc6 {[%clk 0:02:46.1]} 13... Rxd1 {[%clk 0:02:26.4]} 14.
cxb7+ {[%clk 0:02:46.6]} 14... Kxb7 {[%clk 0:02:22.9]} 15. Rxd1 {[%clk 0:02:46]}
15... Bxc3 {[%clk 0:02:09.6]} 16. bxc3 {[%clk 0:02:44.9]} 16... Qxc3 {[%clk
0:02:04.2]} 17. Bf3+ {[%clk 0:02:43.5]} 17... Ka6 {[%clk 0:01:47.9]} 18. Rd6+
{[%clk 0:02:38]} 18... Kb5 {[%clk 0:01:45.3]} 19. a4+ {[%clk 0:02:30.5]} 19...
Kc5 {[%clk 0:01:41.3]} 20. Rc6+ {[%clk 0:02:29.4]} 20... Kb4 {[%clk 0:01:42.5]}
21. Rxc3 {[%clk 0:02:25]} 21... Kxc3 {[%clk 0:01:43.2]} 22. Be3 {[%clk
0:02:22.4]} 1-0

[Event "*** Titled Tuesday Blitz"]
[Site "Chess.com"]
[Date "2018.08.07"]
[Round "6"]
[White "timator"]
[Black "BjarkeSahl"]
[Result "1-0"]
[WhiteElo "2374"]
[BlackElo "2219"]
[TimeControl "180+2"]
[EndTime "14:13:25 PDT"]
[Termination "timator won by resignation"]

1. Nf3 {[%clk 0:02:07.2]} 1... Nf6 {[%clk 0:02:56.7]} 2. g3 {[%clk 0:02:08.5]}
2... g6 {[%clk 0:02:57.6]} 3. Bg2 {[%clk 0:02:10.4]} 3... Bg7 {[%clk 0:02:59.3]}
4. O-O {[%clk 0:02:07.1]} 4... O-O {[%clk 0:03:00.8]} 5. d4 {[%clk 0:02:08.1]}
5... d5 {[%clk 0:03:01.8]} 6. c4 {[%clk 0:02:09.1]} 6... c6 {[%clk 0:03:02.4]}
7. Nbd2 {[%clk 0:02:09.2]} 7... Ne4 {[%clk 0:03:01.6]} 8. b3 {[%clk 0:02:09.8]}
8... a5 {[%clk 0:02:46.2]} 9. a3 {[%clk 0:02:04.6]} 9... Nc3 {[%clk 0:02:37.6]}
10. Qe1 {[%clk 0:02:05.6]} 10... c5 {[%clk 0:02:39.2]} 11. e3 {[%clk 0:01:43.1]}
11... Nc6 {[%clk 0:02:40]} 12. Bb2 {[%clk 0:01:40.6]} 12... cxd4 {[%clk
0:02:39.2]} 13. exd4 {[%clk 0:01:41.2]} 13... Nxd4 {[%clk 0:02:35]} 14. Nxd4
{[%clk 0:01:42]} 14... Bxd4 {[%clk 0:02:35.8]} 15. Nf3 {[%clk 0:01:43.2]} 15...
e5 {[%clk 0:02:20.4]} 16. Bxc3 {[%clk 0:01:42.9]} 16... Bxc3 {[%clk 0:02:21.6]}
17. Qxc3 {[%clk 0:01:44.8]} 17... d4 {[%clk 0:02:23.2]} 18. Qd2 {[%clk
0:01:45.2]} 18... f6 {[%clk 0:02:24.7]} 19. Ne1 {[%clk 0:01:44]} 19... Kg7
{[%clk 0:02:20]} 20. Nd3 {[%clk 0:01:44.1]} 20... Qc7 {[%clk 0:02:11.8]} 21. f4
{[%clk 0:01:44]} 21... Bf5 {[%clk 0:02:11.9]} 22. fxe5 {[%clk 0:01:44]} 22...
fxe5 {[%clk 0:02:13.1]} 23. Rae1 {[%clk 0:01:45.5]} 23... Rae8 {[%clk 0:02:13]}
24. Be4 {[%clk 0:01:44.7]} 24... Bh3 {[%clk 0:02:14]} 25. Rxf8 {[%clk
0:01:44.7]} 25... Rxf8 {[%clk 0:02:15.1]} 26. Bg2 {[%clk 0:01:45.9]} 26... Bf5
{[%clk 0:02:10.1]} 1-0

[Event "*** Titled Tuesday Blitz"]
[Site "Chess.com"]
[Date "2018.08.07"]
[Round "6"]
[White "Orest_Vovk"]
[Black "sergeikim"]
[Result "1/2-1/2"]
[WhiteElo "2326"]
[BlackElo "2364"]
[TimeControl "180+2"]
[EndTime "14:14:54 PDT"]
[Termination "Game drawn by repetition"]

1. g4 {[%clk 0:02:58.9]} 1... d5 {[%clk 0:02:59.7]} 2. Bg2 {[%clk 0:02:59]} 2...
c6 {[%clk 0:03:00.6]} 3. h3 {[%clk 0:02:59.6]} 3... e5 {[%clk 0:03:00]} 4. d4
{[%clk 0:03:00.4]} 4... Nd7 {[%clk 0:02:58.8]} 5. c4 {[%clk 0:03:01.3]} 5...
dxc4 {[%clk 0:02:56.1]} 6. Nf3 {[%clk 0:02:59.4]} 6... exd4 {[%clk 0:02:51.4]}
7. Qxd4 {[%clk 0:02:52.5]} 7... Nb6 {[%clk 0:02:50.9]} 8. Qxd8+ {[%clk
0:02:52.6]} 8... Kxd8 {[%clk 0:02:51]} 9. O-O {[%clk 0:02:54.5]} 9... h6 {[%clk
0:02:44.9]} 10. Rd1+ {[%clk 0:02:55.1]} 10... Ke8 {[%clk 0:02:45.9]} 11. Ne5
{[%clk 0:02:52.4]} 11... Be6 {[%clk 0:02:46.2]} 12. a4 {[%clk 0:02:43.5]} 12...
a5 {[%clk 0:02:37.8]} 13. Nc3 {[%clk 0:02:40.2]} 13... Bb4 {[%clk 0:02:33.7]}
14. Nxc6 {[%clk 0:02:02.5]} 14... bxc6 {[%clk 0:02:33.7]} 15. Bxc6+ {[%clk
0:02:04.4]} 15... Ke7 {[%clk 0:02:34.9]} 16. Bxa8 {[%clk 0:01:55.5]} 16... Nxa8
{[%clk 0:02:35.5]} 17. Nd5+ {[%clk 0:01:55.7]} 17... Bxd5 {[%clk 0:02:30]} 18.
Rxd5 {[%clk 0:01:57.6]} 18... Nf6 {[%clk 0:02:28.1]} 19. Re5+ {[%clk 0:01:56.7]}
19... Kd7 {[%clk 0:02:23.5]} 20. Be3 {[%clk 0:01:49.4]} 20... Nc7 {[%clk
0:02:13.5]} 21. Rd1+ {[%clk 0:01:46.8]} 21... Kc6 {[%clk 0:02:11.4]} 22. g5
{[%clk 0:01:32.2]} 22... hxg5 {[%clk 0:02:07.8]} 23. Rxg5 {[%clk 0:01:32.8]}
23... Ne6 {[%clk 0:02:06.1]} 24. Rb5 {[%clk 0:01:31.3]} 24... Rxh3 {[%clk
0:01:58.2]} 25. Rb6+ {[%clk 0:01:30.7]} 25... Kc7 {[%clk 0:01:59.2]} 26. Ra6
{[%clk 0:01:31.8]} 26... Kb8 {[%clk 0:01:20.1]} 27. Rb6+ {[%clk 0:01:22.7]}
27... Kc7 {[%clk 0:01:20.2]} 28. Ra6 {[%clk 0:01:23]} 28... Kb8 {[%clk
0:01:20.8]} 29. Rb6+ {[%clk 0:01:21.4]} 29... Kc7 {[%clk 0:01:21.2]} 30. Ra6
{[%clk 0:01:20]} 1/2-1/2

[Event "*** Titled Tuesday Blitz"]
[Site "Chess.com"]
[Date "2018.08.07"]
[Round "6"]
[White "GM_dmitrij"]
[Black "Micki-taryan"]
[Result "0-1"]
[WhiteElo "2700"]
[BlackElo "2907"]
[TimeControl "180+2"]
[EndTime "14:15:09 PDT"]
[Termination "Micki-taryan won by resignation"]

1. e4 {[%clk 0:03:01.9]} 1... Nc6 {[%clk 0:03:01.9]} 2. Nf3 {[%clk 0:03:02.5]}
2... e5 {[%clk 0:03:03.8]} 3. Bb5 {[%clk 0:03:03.1]} 3... a6 {[%clk 0:03:04.4]}
4. Ba4 {[%clk 0:03:04.4]} 4... d6 {[%clk 0:03:03.5]} 5. c3 {[%clk 0:03:04.6]}
5... Bd7 {[%clk 0:03:04]} 6. d4 {[%clk 0:03:05]} 6... Nf6 {[%clk 0:03:04.7]} 7.
O-O {[%clk 0:03:04.2]} 7... Be7 {[%clk 0:03:05.7]} 8. Re1 {[%clk 0:03:02.8]}
8... O-O {[%clk 0:03:06.3]} 9. h3 {[%clk 0:03:03.4]} 9... Re8 {[%clk 0:03:06.5]}
10. d5 {[%clk 0:02:56.7]} 10... Nb8 {[%clk 0:03:06.2]} 11. c4 {[%clk 0:02:57.3]}
11... Bxa4 {[%clk 0:03:06.4]} 12. Qxa4 {[%clk 0:02:59.2]} 12... Nbd7 {[%clk
0:03:08.1]} 13. Nc3 {[%clk 0:02:58.8]} 13... Bf8 {[%clk 0:03:05]} 14. Be3 {[%clk
0:02:56.4]} 14... a5 {[%clk 0:03:04.8]} 15. Qc2 {[%clk 0:02:44]} 15... Nh5
{[%clk 0:03:05.3]} 16. a3 {[%clk 0:02:43.3]} 16... Nf4 {[%clk 0:03:06.2]} 17. b4
{[%clk 0:02:40.5]} 17... Qf6 {[%clk 0:03:07]} 18. Kh2 {[%clk 0:02:20.5]} 18...
h6 {[%clk 0:03:00.1]} 19. Ng1 {[%clk 0:02:06.1]} 19... g5 {[%clk 0:02:59.7]} 20.
Nb5 {[%clk 0:02:05.6]} 20... Rec8 {[%clk 0:02:59.3]} 21. Rec1 {[%clk 0:01:41.4]}
21... c6 {[%clk 0:02:58.7]} 22. Nc3 {[%clk 0:01:32.3]} 22... cxd5 {[%clk
0:02:58.9]} 23. Bxf4 {[%clk 0:01:30.1]} 23... exf4 {[%clk 0:02:53.2]} 24. Nxd5
{[%clk 0:01:30.3]} 24... Qe6 {[%clk 0:02:53.2]} 25. Nf3 {[%clk 0:01:20.3]} 25...
Bg7 {[%clk 0:02:54.9]} 26. Rab1 {[%clk 0:01:21.1]} 26... axb4 {[%clk 0:02:54.6]}
27. axb4 {[%clk 0:01:21.4]} 27... Ra3 {[%clk 0:02:56.5]} 28. Qe2 {[%clk
0:01:02]} 28... Kh8 {[%clk 0:02:46.4]} 29. Rc2 {[%clk 0:00:59.7]} 29... Rg8
{[%clk 0:02:43.5]} 30. c5 {[%clk 0:00:58.8]} 30... g4 {[%clk 0:02:36.7]} 31. Ng1
{[%clk 0:00:39.5]} 31... f3 {[%clk 0:02:35.4]} 32. Qd2 {[%clk 0:00:30.1]} 32...
fxg2 {[%clk 0:02:31.8]} 33. Kxg2 {[%clk 0:00:23.7]} 33... gxh3+ {[%clk
0:02:31.4]} 34. Kh1 {[%clk 0:00:24.5]} 34... Qxe4+ {[%clk 0:02:32.3]} 35. f3
{[%clk 0:00:25.7]} 35... Rxf3 {[%clk 0:02:33.1]} 0-1

[Event "*** Titled Tuesday Blitz"]
[Site "Chess.com"]
[Date "2018.08.07"]
[Round "6"]
[White "GMG"]
[Black "Abrito99"]
[Result "1-0"]
[WhiteElo "2739"]
[BlackElo "2502"]
[TimeControl "180+2"]
[EndTime "14:15:16 PDT"]
[Termination "GMG won by resignation"]

1. d4 {[%clk 0:03:01.9]} 1... Nf6 {[%clk 0:03:00.7]} 2. Bf4 {[%clk 0:03:02]}
2... g6 {[%clk 0:03:01.6]} 3. Nc3 {[%clk 0:03:01.9]} 3... Bg7 {[%clk 0:02:55.5]}
4. e4 {[%clk 0:03:02.3]} 4... c6 {[%clk 0:02:51]} 5. e5 {[%clk 0:03:00.4]} 5...
Nd5 {[%clk 0:02:51]} 6. Nxd5 {[%clk 0:03:00.8]} 6... cxd5 {[%clk 0:02:52.9]} 7.
Qd2 {[%clk 0:03:00.5]} 7... h6 {[%clk 0:02:52.6]} 8. O-O-O {[%clk 0:02:59.6]}
8... Nc6 {[%clk 0:02:50.9]} 9. Nf3 {[%clk 0:02:56.6]} 9... g5 {[%clk 0:02:48.2]}
10. Bg3 {[%clk 0:02:57.3]} 10... g4 {[%clk 0:02:33.1]} 11. Nh4 {[%clk
0:02:45.4]} 11... d6 {[%clk 0:02:34.5]} 12. f4 {[%clk 0:02:46.4]} 12... gxf3
{[%clk 0:02:03.4]} 13. Nxf3 {[%clk 0:02:45]} 13... dxe5 {[%clk 0:01:48.1]} 14.
Nxe5 {[%clk 0:02:38.3]} 14... Bf5 {[%clk 0:01:32]} 15. Qf2 {[%clk 0:02:15.9]}
15... e6 {[%clk 0:01:14.2]} 16. Bd3 {[%clk 0:02:13.2]} 16... Bxe5 {[%clk
0:01:06.9]} 17. dxe5 {[%clk 0:02:05.2]} 17... Qg5+ {[%clk 0:01:03.2]} 18. Kb1
{[%clk 0:02:05.6]} 18... Bxd3 {[%clk 0:00:57.4]} 19. Rxd3 {[%clk 0:02:07.5]}
19... Nxe5 {[%clk 0:00:56]} 20. Rf1 {[%clk 0:01:49.6]} 20... Rf8 {[%clk
0:00:20.1]} 21. Re3 {[%clk 0:01:45.4]} 21... Ng4 {[%clk 0:00:19.5]} 22. Rxe6+
{[%clk 0:01:45]} 22... Kd7 {[%clk 0:00:11.2]} 23. Rd6+ {[%clk 0:01:39.5]} 23...
Ke7 {[%clk 0:00:11.6]} 24. Re1+ {[%clk 0:01:39]} 1-0

[Event "*** Titled Tuesday Blitz"]
[Site "Chess.com"]
[Date "2018.08.07"]
[Round "6"]
[White "OparinGrigoriy"]
[Black "krzyzan94"]
[Result "1-0"]
[WhiteElo "2883"]
[BlackElo "2652"]
[TimeControl "180+2"]
[EndTime "14:15:18 PDT"]
[Termination "OparinGrigoriy won by resignation"]

1. e4 {[%clk 0:02:59.5]} 1... e5 {[%clk 0:02:59.9]} 2. Nf3 {[%clk 0:03:00.8]}
2... Nc6 {[%clk 0:03:01.1]} 3. Bc4 {[%clk 0:03:02]} 3... Nf6 {[%clk 0:03:00.1]}
4. d3 {[%clk 0:03:02.9]} 4... h6 {[%clk 0:02:55.1]} 5. Nc3 {[%clk 0:03:02.8]}
5... d6 {[%clk 0:02:54.5]} 6. h3 {[%clk 0:02:56.8]} 6... g6 {[%clk 0:02:54.8]}
7. Be3 {[%clk 0:02:57.5]} 7... Bg7 {[%clk 0:02:55.6]} 8. Qd2 {[%clk 0:02:58.3]}
8... Na5 {[%clk 0:02:41.6]} 9. Bb5+ {[%clk 0:02:56.9]} 9... c6 {[%clk
0:02:40.3]} 10. Ba4 {[%clk 0:02:57.7]} 10... b5 {[%clk 0:02:38.9]} 11. Bb3
{[%clk 0:02:59]} 11... Nxb3 {[%clk 0:02:39.7]} 12. axb3 {[%clk 0:02:59.4]} 12...
a6 {[%clk 0:02:37.2]} 13. Ne2 {[%clk 0:02:51.1]} 13... Bb7 {[%clk 0:02:28.3]}
14. O-O {[%clk 0:02:47.8]} 14... Qe7 {[%clk 0:01:59]} 15. c4 {[%clk 0:02:46.2]}
15... h5 {[%clk 0:01:56.8]} 16. c5 {[%clk 0:02:26.4]} 16... d5 {[%clk
0:01:50.4]} 17. exd5 {[%clk 0:02:19.9]} 17... Nxd5 {[%clk 0:01:52.3]} 18. Nc3
{[%clk 0:02:17.9]} 18... Nxc3 {[%clk 0:01:43.1]} 19. bxc3 {[%clk 0:02:17.8]}
19... O-O {[%clk 0:01:44.4]} 20. d4 {[%clk 0:02:16.9]} 20... e4 {[%clk
0:01:42.8]} 21. Ne1 {[%clk 0:02:11.9]} 21... Rad8 {[%clk 0:01:42.2]} 22. Nc2
{[%clk 0:02:13]} 22... Bf6 {[%clk 0:01:21.9]} 23. Nb4 {[%clk 0:02:11.4]} 23...
g5 {[%clk 0:01:22]} 24. Rfe1 {[%clk 0:02:07.7]} 24... Rfe8 {[%clk 0:01:04.9]}
25. Nxa6 {[%clk 0:02:03]} 25... g4 {[%clk 0:00:59.6]} 26. hxg4 {[%clk
0:02:04.1]} 26... hxg4 {[%clk 0:01:00.4]} 27. Nb4 {[%clk 0:02:05.4]} 27... Kg7
{[%clk 0:00:42.8]} 28. Ra7 {[%clk 0:02:05.8]} 28... Rc8 {[%clk 0:00:39.3]} 29.
d5 {[%clk 0:02:03.5]} 29... Rh8 {[%clk 0:00:29.8]} 30. Bd4 {[%clk 0:02:01.8]}
30... cxd5 {[%clk 0:00:26.9]} 31. Qg5+ {[%clk 0:02:02.2]} 1-0

[Event "*** Titled Tuesday Blitz"]
[Site "Chess.com"]
[Date "2018.08.07"]
[Round "6"]
[White "TBergh98"]
[Black "Hrant_ChessMood"]
[Result "0-1"]
[WhiteElo "2051"]
[BlackElo "2979"]
[TimeControl "180+2"]
[EndTime "14:15:50 PDT"]
[Termination "Hrant_ChessMood won by resignation"]

1. d4 {[%clk 0:01:16.3]} 1... Nf6 {[%clk 0:03:00.3]} 2. Bg5 {[%clk 0:01:11.1]}
2... d5 {[%clk 0:02:59.7]} 3. Bxf6 {[%clk 0:01:11.1]} 3... exf6 {[%clk
0:03:01.6]} 4. g3 {[%clk 0:01:11.7]} 4... c6 {[%clk 0:03:02.3]} 5. Bg2 {[%clk
0:01:13.6]} 5... Bd6 {[%clk 0:03:03.2]} 6. e3 {[%clk 0:01:15]} 6... h5 {[%clk
0:03:03.5]} 7. Ne2 {[%clk 0:01:16.9]} 7... h4 {[%clk 0:03:04.2]} 8. O-O {[%clk
0:01:14.2]} 8... Bg4 {[%clk 0:03:01.1]} 9. Nd2 {[%clk 0:01:10.7]} 9... hxg3
{[%clk 0:03:01.3]} 10. hxg3 {[%clk 0:01:10.5]} 10... Qd7 {[%clk 0:03:01.8]} 11.
f3 {[%clk 0:00:57.4]} 11... Bh3 {[%clk 0:02:51.7]} 12. Rf2 {[%clk 0:00:58.2]}
12... Na6 {[%clk 0:02:42.2]} 13. c3 {[%clk 0:00:58.6]} 13... Nc7 {[%clk
0:02:32.3]} 14. Nf1 {[%clk 0:00:52.7]} 14... O-O-O {[%clk 0:02:33]} 15. Nf4
{[%clk 0:00:47.6]} 15... Bxg2 {[%clk 0:02:32.4]} 16. Rxg2 {[%clk 0:00:46.5]}
16... g5 {[%clk 0:02:32.1]} 17. Nd3 {[%clk 0:00:45.9]} 17... Rh3 {[%clk
0:02:29.8]} 18. Kf2 {[%clk 0:00:46]} 18... Rdh8 {[%clk 0:02:25.4]} 19. b4 {[%clk
0:00:45.4]} 19... Rh1 {[%clk 0:02:23.8]} 20. Qb3 {[%clk 0:00:35]} 20... Qf5
{[%clk 0:02:10.4]} 21. Ne1 {[%clk 0:00:31.7]} 21... Qh3 {[%clk 0:01:31.6]} 22.
b5 {[%clk 0:00:29.8]} 22... cxb5 {[%clk 0:01:25.6]} 23. a4 {[%clk 0:00:29.7]}
23... b4 {[%clk 0:01:26.8]} 24. cxb4 {[%clk 0:00:29.7]} 24... f5 {[%clk
0:01:28.3]} 25. Rc1 {[%clk 0:00:28.9]} 25... Kb8 {[%clk 0:01:28.9]} 26. f4
{[%clk 0:00:23.3]} 26... gxf4 {[%clk 0:01:25.9]} 27. exf4 {[%clk 0:00:25.2]}
27... Bxf4 {[%clk 0:01:26.5]} 28. Qf3 {[%clk 0:00:26.5]} 28... Bxc1 {[%clk
0:01:26.7]} 0-1